Workbook

Sheet Лист1
H1: Пртложение к постановлению Администрации Североуральского городского округа от 07.06.2019 № 598
H2: Приложение № 2 к муниципальной программе Североуральского городского округа «Развитие жилищно-коммунального хозяйства и транспортного обслуживания населения, повышение энергетической эффективности и охрана окружающей среды в Североуральском городском округе» 2014-2021 годы
A3: План мероприятий
A4: по выполнению муниципальной программы Североуральского городского округа
A5: «Развитие жилищно-коммунального хозяйства и транспортного обслуживания населения,
A6: повышение энергетической эффективности и охрана окружающей среды в Североуральском городском округе» 2014 -2021 годы
A9: № строки | B9: Наименование мероприятия/ Источники расходов на финансирование | C9: Объем расходов на выполнение мероприятия за счет всех источников ресурсного обеспечения, тыс. руб. | L9: Номер строки целевых показателей, на достижение которых направлены мероприятия
C10: Всего | D10: 2014 год | E10: 2015 год | F10: 2016 год | G10: 2017 год | H10: 2018 год | I10: 2019 год | J10: 2020 год | K10: 2021 год
B11: 1 | C11: 2 | D11: 3 | E11: 4 | F11: 5 | G11: 6 | H11: 7 | I11: 8 | J11: 9 | K11: 10 | L11: 11
A12: 1 | B12: ВСЕГО по муниципальной программе, в том числе: | C12: =SUM(C13+C16+C17) -> 1,314,574.50220 | D12: =SUM(D13+D16+D17) -> 283,826.90000 | E12: 348,239.16000 | F12: 216,622.58758 | G12: 122,867.75616 | H12: 94,174.44440 | I12: 117,465.75406 | J12: 65,498.60000 | K12: 65,879.30000 | L12: Х
A13: =SUM(A12+1) -> 2 | B13: местный бюджет, в т.ч.: | C13: =SUM(D13:K13) -> 768,110.29357 | D13: =SUM(D14:D15) -> 92,792.80000 | E13: 126,635.26000 | F13: 117,147.57339 | G13: 96,239.06172 | H13: 92,906.14440 | I13: 112,913.35406 | J13: 64,544.20000 | K13: 64,931.90000
A14: =SUM(A13+1) -> 3 | B14: - местный бюджет | C14: =SUM(D14:K14) -> 767,915.02797 | D14: =SUM(D19+D24) -> 92,792.80000 | E14: 126,635.26000 | F14: 117,147.57339 | G14: 96,043.79612 | H14: 92,906.14440 | I14: 112,913.35406 | J14: 64,544.20000 | K14: 64,931.90000
A15: 4 | B15: - средства заинтересованных лиц | C15: =SUM(D15:K15) -> 195.26560 | D15: =SUM(D25) -> 0.00000 | E15: 0.00000 | F15: 0.00000 | G15: 195.26560 | H15: 0.00000 | I15: 0.00000 | J15: 0.00000 | K15: 0.00000
A16: 5 | B16: областной бюджет | C16: =SUM(D16:K16) -> 343,376.04811 | D16: =SUM(D20+D26) -> 109,216.10000 | E16: 135,104.30000 | F16: 81,477.35126 | G16: 9,855.79685 | H16: 1,268.30000 | I16: 4,552.40000 | J16: 954.40000 | K16: 947.40000
A17: 6 | B17: федеральный бюджет | C17: =SUM(D17:K17) -> 203,088.16052 | D17: =SUM(D27+D21) -> 81,818.00000 | E17: 86,499.60000 | F17: 17,997.66293 | G17: 16,772.89759 | H17: 0.00000 | I17: 0.00000 | J17: 0.00000 | K17: 0.00000
A18: 7 | B18: Капитальные вложения | C18: =SUM(C19:C21) -> 686,047.81255 | D18: =SUM(D19:D21) -> 232,761.90000 | E18: =SUM(E19:E21) -> 271,669.00000 | F18: 133,207.88470 | G18: 16,137.35632 | H18: 0.00000 | I18: 32,271.67153 | J18: 0.00000 | K18: 0.00000 | L18: Х
A19: 8 | B19: местный бюджет | C19: =SUM(D19:K19) -> 165,849.72877 | D19: =D35+D134+D206+D226+D257+D292+D361+D383 -> 44,727.80000 | E19: =E35+E134+E206+E226+E257+E292+E361+E383 -> 50,411.30000 | F19: =F35+F134+F206+F226+F257+F292+F361+F383 -> 34,707.97051 | G19: =G35+G134+G206+G226+G257+G292+G361+G383+G420 -> 7,324.68673 | H19: =H35+H134+H206+H226+H257+H292+H361+H383 -> 0.00000 | I19: =I35+I134+I206+I226+I257+I292+I361+I383 -> 28,677.97153 | J19: =J35+J134+J206+J226+J257+J292+J361+J383 -> 0.00000 | K19: =K35+K134+K206+K226+K257+K292+K361+K383 -> 0.00000
A20: 9 | B20: областной бюджет | C20: =SUM(D20:K20) -> 332,741.81326 | D20: =D135+D227+D36 -> 106,216.10000 | E20: =E135+E227+E36 -> 134,758.10000 | F20: =F135+F227 -> 80,502.25126 | G20: 7,671.66200 | H20: 0.00000 | I20: 3,593.70000 | J20: 0.00000 | K20: 0.00000
A21: 10 | B21: федеральный бюджет | C21: =SUM(D21:K21) -> 187,456.27052 | D21: =D228 -> 81,818.00000 | E21: =E228 -> 86,499.60000 | F21: 17,997.66293 | G21: 1,141.00759 | H21: 0.00000 | I21: 0.00000 | J21: 0.00000 | K21: 0.00000
A22: 11 | B22: Прочие нужды | C22: =SUM(C27+C26+C23) -> 628,526.68965 | D22: =SUM(D23:D26) -> 99,130.00000 | E22: =SUM(E23:E26) -> 152,794.12000 | F22: =SUM(F23:F26) -> 165,854.30576 | G22: =SUM(G27+G26+G23) -> 106,730.39984 | H22: =SUM(H27+H26+H23) -> 94,174.44440 | I22: =SUM(I27+I26+I23) -> 85,194.08253 | J22: =SUM(J27+J26+J23) -> 65,498.60000 | K22: =SUM(K27+K26+K23) -> 65,879.30000 | L22: Х
A23: 12 | B23: местный бюджет, в т.ч.: | C23: =SUM(D23:K23) -> 602,260.56480 | D23: =D50+D180+D215+D244+D301+D370+D399+D266+D352 -> 48,065.00000 | E23: =E50+E180+E215+E244+E301+E370+E399+E266+E352 -> 76,223.96000 | F23: =F50+F180+F215+F244+F301+F370+F399+F266+F352 -> 82,439.60288 | G23: =SUM(G24:G25) -> 88,914.37499 | H23: =H50+H180+H215+H244+H301+H370+H399+H266+H352 -> 92,906.14440 | I23: =I50+I180+I215+I244+I301+I370+I399+I266+I352 -> 84,235.38253 | J23: =J50+J180+J215+J244+J301+J370+J399+J266+J352 -> 64,544.20000 | K23: =K50+K180+K215+K244+K301+K370+K399+K266+K352 -> 64,931.90000
A24: 13 | B24: - местный бюджет | C24: =SUM(C50+C180+C215+C244+C266+C301+C352+C370+C399+C436) -> 602,065.29920 | D24: 48,065.00000 | E24: 76,223.96000 | F24: 82,439.60288 | G24: 88,719.10939 | H24: 92,906.14440 | I24: 84,235.38253 | J24: 64,544.20000 | K24: 64,931.90000
A25: 14 | B25: - средства заинтересованных лиц | C25: =SUM(D25:K25) -> 195.26560 | D25: =SUM(D437) -> 0.00000 | E25: 0.00000 | F25: 0.00000 | G25: 195.26560 | H25: 0.00000 | I25: 0.00000 | J25: 0.00000 | K25: 0.00000
A26: 15 | B26: областной бюджет | C26: =SUM(D26:K26) -> 10,634.23485 | D26: =SUM(D181+D398+D51+D267+D438) -> 3,000.00000 | E26: 346.20000 | F26: 975.10000 | G26: 2,184.13485 | H26: 1,268.30000 | I26: 958.70000 | J26: 954.40000 | K26: 947.40000
A27: 16 | B27: федеральный бюджет | C27: =SUM(D27:K27) -> 15,631.89000 | D27: 0.00000 | E27: =E181 -> 0.00000 | F27: =F181 -> 0.00000 | G27: =SUM(G439) -> 15,631.89000 | H27: =SUM(H439) -> 0.00000 | I27: =SUM(I439) -> 0.00000 | J27: =SUM(J439) -> 0.00000 | K27: =SUM(K439) -> 0.00000
A28: 17 | B28: Подпрограмма 1: Комплексное благоустройство территории Североуральского городского округа
A29: 18 | B29: Всего по подпрограмме 1, | C29: =SUM(C31+C32) -> 269,566.09775 | D29: =SUM(D31:D32) -> 25,725.20000 | E29: 29,762.20000 | F29: 47,222.84145 | G29: 35,527.97723 | H29: 38,623.97458 | I29: 32,639.10449 | J29: 30,035.90000 | K29: =SUM(K31:K32) -> 30,028.90000 | L29: Х
A30: 19 | B30: в том числе:
A31: 20 | B31: местный бюджет | C31: =SUM(D31:K31) -> 258,996.09775 | D31: =SUM(D35+D50) -> 24,510.50000 | E31: 26,102.30000 | F31: 46,247.74145 | G31: =SUM(G35+G50) -> 34,564.47723 | H31: 37,669.67458 | I31: 31,696.40449 | J31: 29,102.50000 | K31: 29,102.50000
A32: 21 | B32: областной бюджет | C32: =SUM(D32:K32) -> 10,570.00000 | D32: 1,214.70000 | E32: 3,659.90000 | F32: 975.10000 | G32: 963.50000 | H32: 954.30000 | I32: 942.70000 | J32: 933.40000 | K32: 926.40000
A33: 22 | B33: 1. Капитальные вложения
A34: 23 | B34: Всего по направлению «Капитальные вложения» всего, в том числе | C34: =SUM(D34:K34) -> 15,605.10000 | D34: =SUM(D35+D36) -> 3,536.40000 | E34: =SUM(E35+E36) -> 3,674.70000 | F34: =SUM(F35) -> 4,819.00000 | G34: 3,575.00000 | H34: 0.00000 | I34: 0.00000 | J34: 0.00000 | K34: 0.00000 | L34: Х
A35: 24 | B35: местный бюджет | C35: =SUM(D35:K35) -> 11,076.70000 | D35: =SUM(D46) -> 2,321.70000 | E35: =SUM(E46) -> 361.00000 | F35: =SUM(F46) -> 4,819.00000 | G35: =SUM(G39+G42) -> 3,575.00000 | H35: 0.00000 | I35: 0.00000 | J35: 0.00000 | K35: =SUM(K46) -> 0.00000
A36: 25 | B36: областной бюджет | C36: =SUM(D36:K36) -> 4,528.40000 | D36: =SUM(D43) -> 1,214.70000 | E36: =SUM(E43) -> 3,313.70000 | F36: 0.00000 | G36: =SUM(G43) -> 0.00000 | H36: 0.00000 | I36: 0.00000 | J36: 0.00000 | K36: =SUM(K43) -> 0.00000
A37: 26 | B37: 1.1. Бюджетные инвестиции в объекты капитального строительства
A38: 27 | B38: Бюджетные инвестиции в объекты капитального строительства всего, в том числе | C38: 0.00000 | D38: 0.00000 | E38: 0.00000 | F38: 0.00000 | G38: 0.00000 | H38: 0.00000 | I38: 0.00000 | J38: 0.00000 | K38: 0.00000 | L38: Х
A39: 28 | B39: местный бюджет | C39: 0.00000 | D39: 0.00000 | E39: 0.00000 | F39: 0.00000 | G39: 0.00000 | H39: 0.00000 | I39: 0.00000 | J39: 0.00000 | K39: 0.00000
A40: 29 | B40: 1.2. Иные капитальные вложения
A41: 30 | B41: Всего | C41: =SUM(D41:K41) -> 15,605.10000 | D41: =SUM(D42:D43) -> 3,536.40000 | E41: =SUM(E42:E43) -> 3,674.70000 | F41: 4,819.00000 | G41: 3,575.00000 | H41: 0.00000 | I41: 0.00000 | J41: 0.00000 | K41: =SUM(K42:K43) -> 0.00000 | L41: Х
A42: 31 | B42: местный бюджет | C42: =SUM(D42:K42) -> 11,076.70000 | D42: =SUM(D46) -> 2,321.70000 | E42: 361.00000 | F42: 4,819.00000 | G42: 3,575.00000 | H42: 0.00000 | I42: 0.00000 | J42: 0.00000 | K42: 0.00000
A43: 32 | B43: областной бюджет | C43: =SUM(D43:K43) -> 4,528.40000 | D43: =SUM(D47) -> 1,214.70000 | E43: =SUM(E47) -> 3,313.70000 | F43: 0.00000 | G43: =SUM(G47) -> 0.00000 | H43: 0.00000 | I43: 0.00000 | J43: 0.00000 | K43: =SUM(K47) -> 0.00000
A44: 33 | B44: Мероприятие 1 Благоустройство дворовых территорий Североуральского городского округа
A45: 34 | B45: Всего, из них | C45: =SUM(D45:K45) -> 15,605.10000 | D45: =D46+D47 -> 3,536.40000 | E45: =SUM(E46:E47) -> 3,674.70000 | F45: =SUM(F46) -> 4,819.00000 | G45: 3,575.00000 | H45: 0.00000 | I45: 0.00000 | J45: 0.00000 | K45: 0.00000 | L45: стр. 4
A46: 35 | B46: местный бюджет | C46: =SUM(D46:K46) -> 11,076.70000 | D46: 2,321.70000 | E46: 361.00000 | F46: 4,819.00000 | G46: 3,575.00000 | H46: 0.00000 | I46: 0.00000 | J46: 0.00000 | K46: 0.00000
A47: 36 | B47: областной бюджет | C47: =SUM(D47:K47) -> 4,528.40000 | D47: 1,214.70000 | E47: 3,313.70000 | F47: 0.00000 | G47: 0.00000 | H47: 0.00000 | I47: 0.00000 | J47: 0.00000 | K47: 0.00000
A48: 37 | B48: 3. Прочие нужды
A49: 38 | B49: Всего по направлению «Прочие нужды», всего, в том числе: | C49: =SUM(D49:K49) -> 253,960.99775 | D49: =SUM(D50:D51) -> 22,188.80000 | E49: 26,087.50000 | F49: 42,403.84145 | G49: 31,952.97723 | H49: 38,623.97458 | I49: 32,639.10449 | J49: 30,035.90000 | K49: 30,028.90000 | L49: Х
A50: 39 | B50: местный бюджет | C50: =SUM(D50:K50) -> 247,919.39775 | D50: =SUM(D61+D70+D73+D76+D54+D126) -> 22,188.80000 | E50: 25,741.30000 | F50: 41,428.74145 | G50: 30,989.47723 | H50: 37,669.67458 | I50: 31,696.40449 | J50: 29,102.50000 | K50: 29,102.50000
A51: 40 | B51: областной бюджет | C51: =SUM(D51:K51) -> 6,041.60000 | D51: =SUM(D77) -> 0.00000 | E51: =SUM(E77) -> 346.20000 | F51: =SUM(F127) -> 975.10000 | G51: 963.50000 | H51: 954.30000 | I51: 942.70000 | J51: 933.40000 | K51: 926.40000
A52: 41 | B52: Мероприятие 1 Благоустройство дворовых территорий Североуральского городского округа
A53: 42 | B53: Всего, из них | C53: =SUM(D53:K53) -> 7,134.74500 | D53: =D54+D55 -> 310.90000 | E53: =SUM(E54) -> 436.00000 | F53: 2,681.00000 | G53: 500.00000 | H53: 1,206.84500 | I53: 1,000.00000 | J53: 500.00000 | K53: 500.00000 | L53: стр. 4
A54: 43 | B54: местный бюджет | C54: =SUM(D54:K54) -> 7,134.74500 | D54: 310.90000 | E54: 436.00000 | F54: 2,681.00000 | G54: 500.00000 | H54: 1,206.84500 | I54: 1,000.00000 | J54: 500.00000 | K54: 500.00000
A55: 44 | B55: областной бюджет | C55: =SUM(D55:K55) -> 0.00000 | D55: 0.00000 | E55: 0.00000 | F55: 0.00000 | G55: 0.00000 | H55: 0.00000 | I55: 0.00000 | J55: 0.00000 | K55: 0.00000
A56: 45 | B56: Мероприятие 2 Благоустройство парков и скверов в городе Североуральске
A57: 46 | B57: Всего, из них | C57: =SUM(D57:J57) -> 0.00000 | D57: =D58+D59 -> 0.00000 | E57: =SUM(E58) -> 0.00000 | F57: 0.00000 | G57: 0.00000 | H57: 0.00000 | I57: 0.00000 | J57: 0.00000 | K57: 0.00000 | L57: Х
A58: 47 | B58: местный бюджет | C58: =SUM(D58:J58) -> 0.00000 | D58: 0.00000 | E58: 0.00000 | F58: 0.00000 | G58: 0.00000 | H58: =SUM(G58) -> 0.00000 | I58: =SUM(H58) -> 0.00000 | J58: =SUM(I58) -> 0.00000 | K58: =SUM(J58) -> 0.00000
A59: 48 | B59: Мероприятие 3- Уличное освещение
A60: 49 | B60: Всего, в том числе: | C60: =SUM(D60:K60) -> 129,510.53280 | D60: =SUM(D61) -> 12,001.00000 | E60: 12,600.00000 | F60: 18,150.69080 | G60: 15,955.00000 | H60: 21,456.00400 | I60: 17,347.83800 | J60: =SUM(J61) -> 16,000.00000 | K60: =SUM(K61) -> 16,000.00000 | L60: стр.8. с 2017 года стр. 9
A61: 50 | B61: местный бюджет | C61: =SUM(D61:K61) -> 129,510.53280 | D61: =SUM(D64+D67) -> 12,001.00000 | E61: 12,600.00000 | F61: 18,150.69080 | G61: 15,955.00000 | H61: 21,456.00400 | I61: 17,347.83800 | J61: 16,000.00000 | K61: 16,000.00000
A62: 51 | B62: - Обеспечение бесперебойной подачи электроэнергии
A63: 52 | B63: Всего: | C63: =SUM(D63:K63) -> 95,203.08840 | D63: =SUM(D64) -> 8,644.10000 | E63: =SUM(E64) -> 8,800.00000 | F63: 10,660.69080 | G63: 13,098.29760 | H63: 15,000.00000 | I63: 13,000.00000 | J63: 13,000.00000 | K63: 13,000.00000 | L63: стр.8. с 2017 года стр. 9
A64: 53 | B64: местный бюджет | C64: =SUM(D64:K64) -> 95,203.08840 | D64: 8,644.10000 | E64: 8,800.00000 | F64: 10,660.69080 | G64: 13,098.29760 | H64: 15,000.00000 | I64: 13,000.00000 | J64: 13,000.00000 | K64: 13,000.00000
A65: 54 | B65: - Содержание, ремонт и модернизация сетей уличного освещения
A66: 55 | B66: Всего: | C66: =SUM(D66:K66) -> 34,307.44440 | D66: =SUM(D67) -> 3,356.90000 | E66: =SUM(E67) -> 3,800.00000 | F66: 7,490.00000 | G66: 2,856.70240 | H66: 6,456.00400 | I66: 4,347.83800 | J66: 3,000.00000 | K66: 3,000.00000 | L66: стр.8. с 2017 года стр. 9
A67: 56 | B67: местный бюджет | C67: =SUM(D67:K67) -> 34,307.44440 | D67: 3,356.90000 | E67: 3,800.00000 | F67: 7,490.00000 | G67: 2,856.70240 | H67: 6,456.00400 | I67: 4,347.83800 | J67: 3,000.00000 | K67: 3,000.00000
A68: 57 | B68: Мероприятие 4 - Озеленение
A69: 58 | B69: Всего, из них | C69: =SUM(D69:K69) -> 26,416.41610 | D69: =SUM(D70) -> 2,890.90000 | E69: 2,148.00000 | F69: 3,923.84386 | G69: 3,352.35509 | H69: 3,175.75066 | I69: 4,320.56649 | J69: 3,302.50000 | K69: 3,302.50000 | L69: стр.11
A70: 59 | B70: местный бюджет | C70: =SUM(D70:K70) -> 26,416.41610 | D70: 2,890.90000 | E70: 2,148.00000 | F70: 3,923.84386 | G70: 3,352.35509 | H70: 3,175.75066 | I70: 4,320.56649 | J70: 3,302.50000 | K70: 3,302.50000
A71: 60 | B71: Мероприятие 5 - Организация и содержание мест захоронения
A72: 61 | B72: Всего, из них | C72: =SUM(D72:K72) -> 23,332.76851 | D72: =SUM(D73) -> 2,263.10000 | E72: 2,306.90000 | F72: 3,619.44212 | G72: 2,961.65639 | H72: 3,181.67000 | I72: 3,000.00000 | J72: 3,000.00000 | K72: 3,000.00000 | L72: стр.16
A73: 62 | B73: местный бюджет | C73: =SUM(D73:K73) -> 23,332.76851 | D73: 2,263.10000 | E73: 2,306.90000 | F73: 3,619.44212 | G73: 2,961.65639 | H73: 3,181.67000 | I73: 3,000.00000 | J73: =SUM(I73) -> 3,000.00000 | K73: =SUM(J73) -> 3,000.00000
A74: 63 | B74: Мероприятие 6 - Прочие мероприятия по благоустройству Североуральского городского округа
A75: 64 | B75: Всего, в том числе: | C75: =SUM(D75:K75) -> 60,098.68534 | D75: =SUM(D76:D77) -> 4,722.90000 | E75: =SUM(E76:E77) -> 8,596.60000 | F75: 12,256.96467 | G75: 8,014.41575 | H75: 8,129.80492 | I75: 5,778.00000 | J75: 6,300.00000 | K75: 6,300.00000 | L75: стр.5,5.1.,6,11,13,14,15,17
A76: 65 | B76: местный бюджет | C76: =SUM(D76:K76) -> 59,752.48534 | D76: =SUM(D80+D83+D90+D93+D99+D96+D102+D108+D105+D86+D111+D114) -> 4,722.90000 | E76: =SUM(E80+E83+E90+E93+E99+E96+E102+E108+E105+E86+E111+E114) -> 8,250.40000 | F76: =SUM(F80+F83+F90+F93+F99+F96+F102+F108+F105+F86+F111+F114) -> 12,256.96467 | G76: =SUM(G80+G83+G90+G93+G99+G96+G102+G108+G105+G86+G111+G114) -> 8,014.41575 | H76: =SUM(H80+H83+H90+H93+H99+H96+H102+H108+H105+H86+H111+H114+H117+H120) -> 8,129.80492 | I76: =SUM(I80+I83+I90+I93+I99+I96+I102+I108+I105+I86+I111+I114+I117+I120+I123) -> 5,778.00000 | J76: =SUM(J80+J83+J90+J93+J99+J96+J102+J108+J105+J86+J111+J114+J117+J120) -> 6,300.00000 | K76: =SUM(K80+K83+K90+K93+K99+K96+K102+K108+K105+K86+K111+K114+K117+K120) -> 6,300.00000
A77: 66 | B77: областной бюджет | C77: =SUM(D77:K77) -> 346.20000 | D77: =SUM(D87) -> 0.00000 | E77: =SUM(E87) -> 346.20000 | F77: 0.00000 | G77: 0.00000 | H77: 0.00000 | I77: 0.00000 | J77: 0.00000 | K77: 0.00000
A78: =SUM(A77+1) -> 67 | B78: - Содержание памятников
A79: 68 | B79: Всего: | C79: =SUM(D79:K79) -> 3,624.85888 | D79: =SUM(D80) -> 369.20000 | E79: 404.90000 | F79: 384.30006 | G79: 466.45882 | H79: 500.00000 | I79: 500.00000 | J79: 500.00000 | K79: 500.00000 | L79: стр. 17
A80: 69 | B80: местный бюджет | C80: =SUM(D80:K80) -> 3,624.85888 | D80: 369.20000 | E80: 404.90000 | F80: 384.30006 | G80: 466.45882 | H80: 500.00000 | I80: 500.00000 | J80: 500.00000 | K80: 500.00000
A81: 70 | B81: - Уход за объектами благоустройства
A82: 71 | B82: Всего: | C82: =SUM(C83) -> 9,734.54965 | D82: =SUM(D83) -> 1,098.70000 | E82: =SUM(E83) -> 976.10000 | F82: 999.81380 | G82: 1,147.68593 | H82: 1,312.24992 | I82: 1,400.00000 | J82: 1,400.00000 | K82: 1,400.00000 | L82: стр. 5
A83: 72 | B83: местный бюджет | C83: =SUM(D83:K83) -> 9,734.54965 | D83: 1,098.70000 | E83: 976.10000 | F83: 999.81380 | G83: 1,147.68593 | H83: 1,312.24992 | I83: 1,400.00000 | J83: 1,400.00000 | K83: 1,400.00000
A84: 73 | B84: - Регулирование численности безнадзорных животных
A85: 74 | B85: Всего: | C85: =SUM(D85:J85) -> 1,677.20000 | D85: =SUM(D86:D87) -> 500.00000 | E85: =SUM(E86:E87) -> 1,177.20000 | F85: 0.00000 | G85: 0.00000 | H85: 0.00000 | I85: 0.00000 | J85: 0.00000 | K85: =SUM(K86:K87) -> 0.00000 | L85: стр. 13
A86: 75 | B86: местный бюджет | C86: =SUM(D86:J86) -> 1,331.00000 | D86: 500.00000 | E86: 831.00000 | F86: 0.00000 | G86: 0.00000 | H86: 0.00000 | I86: =SUM(H86) -> 0.00000 | J86: =SUM(I86) -> 0.00000 | K86: =SUM(J86) -> 0.00000
A87: 76 | B87: областной бюджет | C87: =SUM(D87:K87) -> 346.20000 | D87: 0.00000 | E87: 346.20000 | F87: 0.00000 | G87: 0.00000 | H87: 0.00000 | I87: 0.00000 | J87: 0.00000 | K87: 0.00000
A88: 77 | B88: - Содержание биоямы (скотомогильник)
A89: 78 | B89: Всего: | C89: =SUM(C90) -> 717.18218 | D89: =SUM(D90) -> 116.10000 | E89: =SUM(E90) -> 69.30000 | F89: 77.02912 | G89: 74.75306 | H89: 80.00000 | I89: 100.00000 | J89: 100.00000 | K89: 100.00000 | L89: стр.15
A90: 79 | B90: местный бюджет | C90: =SUM(D90:K90) -> 717.18218 | D90: 116.10000 | E90: 69.30000 | F90: 77.02912 | G90: 74.75306 | H90: 80.00000 | I90: 100.00000 | J90: 100.00000 | K90: 100.00000
A91: 80 | B91: - Обустройство и эксплуатация новогодних городков
A92: 81 | B92: Всего: | C92: =SUM(C93) -> 24,322.70000 | D92: =SUM(D93) -> 1,685.50000 | E92: =SUM(E93) -> 2,669.20000 | F92: 2,900.00000 | G92: 3,120.00000 | H92: 3,820.00000 | I92: 3,028.00000 | J92: 3,550.00000 | K92: 3,550.00000 | L92: стр.5
A93: 82 | B93: местный бюджет | C93: =SUM(D93:K93) -> 24,322.70000 | D93: 1,685.50000 | E93: 2,669.20000 | F93: 2,900.00000 | G93: 3,120.00000 | H93: 3,820.00000 | I93: 3,028.00000 | J93: 3,550.00000 | K93: 3,550.00000
A94: 83 | B94: - Приобретение декоративного освещения для улиц города Североуральска, ремонт светодиодных консолей
A95: 84 | B95: Всего: | C95: =SUM(C96) -> 4,692.40000 | D95: =SUM(D96) -> 773.40000 | E95: =SUM(E96) -> 1,701.00000 | F95: 0.00000 | G95: 560.00000 | H95: 158.00000 | I95: 500.00000 | J95: 500.00000 | K95: 500.00000 | L95: стр.5
A96: 85 | B96: местный бюджет | C96: =SUM(D96:K96) -> 4,692.40000 | D96: 773.40000 | E96: 1,701.00000 | F96: 0.00000 | G96: 560.00000 | H96: 158.00000 | I96: 500.00000 | J96: =SUM(I96) -> 500.00000 | K96: =SUM(J96) -> 500.00000
A97: 86 | B97: - Акарицидная обработка общественных мест
A98: 87 | B98: Всего: | C98: =SUM(C99) -> 882.28990 | D98: =SUM(D99) -> 92.00000 | E98: =SUM(E99) -> 99.90000 | F98: 99.98990 | G98: 45.00000 | H98: 95.40000 | I98: 150.00000 | J98: 150.00000 | K98: 150.00000 | L98: стр.14
A99: 88 | B99: местный бюджет | C99: =SUM(D99:K99) -> 882.28990 | D99: 92.00000 | E99: 99.90000 | F99: 99.98990 | G99: 45.00000 | H99: 95.40000 | I99: 150.00000 | J99: 150.00000 | K99: 150.00000
A100: 89 | B100: - Приобретение грунта плодородного (земли садовой)
A101: 90 | B101: Всего: | C101: =SUM(C102) -> 630.79213 | D101: =SUM(D102) -> 88.00000 | E101: =SUM(E102) -> 0.00000 | F101: 150.00000 | G101: 99.00000 | H101: 0.00000 | I101: 93.79213 | J101: 100.00000 | K101: 100.00000 | L101: стр.11
A102: 91 | B102: местный бюджет | C102: =SUM(D102:K102) -> 630.79213 | D102: 88.00000 | E102: 0.00000 | F102: 150.00000 | G102: 99.00000 | H102: 0.00000 | I102: 93.79213 | J102: 100.00000 | K102: 100.00000
A103: 92 | B103: - Приобретение и установка металлических урн и скамеек
A104: 93 | B104: Всего: | C104: =SUM(D104:K104) -> 1,710.25802 | D104: =SUM(D105) -> 0.00000 | E104: =SUM(E105) -> 0.00000 | F104: 1,710.25802 | G104: 0.00000 | H104: 0.00000 | I104: 0.00000 | J104: 0.00000 | K104: 0.00000 | L104: стр.6
A105: 94 | B105: местный бюджет | C105: =SUM(D105:K105) -> 1,710.25802 | D105: 0.00000 | E105: 0.00000 | F105: 1,710.25802 | G105: 0.00000 | H105: 0.00000 | I105: 0.00000 | J105: =SUM(I105) -> 0.00000 | K105: =SUM(J105) -> 0.00000
A106: 95 | B106: - Благоустройство мест общего пользования территории Североуральского городского округа
A107: 96 | B107: Всего: | C107: =SUM(D107:K107) -> 9,561.04171 | D107: =SUM(D108) -> 0.00000 | E107: =SUM(E108) -> 1,499.00000 | F107: 5,935.57377 | G107: 2,093.46794 | H107: 33.00000 | I107: 0.00000 | J107: 0.00000 | K107: 0.00000 | L107: стр.5
A108: 97 | B108: местный бюджет | C108: =SUM(D108:K108) -> 9,561.04171 | D108: 0.00000 | E108: 1,499.00000 | F108: 5,935.57377 | G108: 2,093.46794 | H108: 33.00000 | I108: 0.00000 | J108: =SUM(I108) -> 0.00000 | K108: =SUM(J108) -> 0.00000
A109: 98 | B109: - Обустройство источника нецентрализованного водоснабжения в п. Сосьва
A110: 99 | B110: Всего: | C110: =SUM(D110:K110) -> 58.05000 | D110: =SUM(D111) -> 0.00000 | E110: =SUM(E111) -> 0.00000 | F110: 0.00000 | G110: 58.05000 | H110: 0.00000 | I110: 0.00000 | J110: 0.00000 | K110: 0.00000 | L110: стр.5
A111: 100 | B111: местный бюджет | C111: =SUM(D111:K111) -> 58.05000 | D111: 0.00000 | E111: 0.00000 | F111: 0.00000 | G111: 58.05000 | H111: 0.00000 | I111: 0.00000 | J111: =SUM(I111) -> 0.00000 | K111: =SUM(J111) -> 0.00000
A112: 101 | B112: - Разработка проектно-сметной документации и проведение ценовой экспертизы скверов, парков и аллей Североуральского городского округа
A113: 102 | B113: Всего: | C113: =SUM(D113:K113) -> 733.15500 | D113: =SUM(D114) -> 0.00000 | E113: =SUM(E114) -> 0.00000 | F113: 0.00000 | G113: 350.00000 | H113: 383.15500 | I113: 0.00000 | J113: 0.00000 | K113: 0.00000 | L113: стр.5.1.
A114: 103 | B114: местный бюджет | C114: =SUM(D114:K114) -> 733.15500 | D114: 0.00000 | E114: 0.00000 | F114: 0.00000 | G114: 350.00000 | H114: 383.15500 | I114: 0.00000 | J114: =SUM(I114) -> 0.00000 | K114: =SUM(J114) -> 0.00000
A115: 104 | B115: - Приобретение и установка остановочных комплексов на территории Североуральского городского округа
A116: 105 | B116: Всего: | C116: =SUM(D116:K116) -> 1,500.00000 | D116: =SUM(D117) -> 0.00000 | E116: =SUM(E117) -> 0.00000 | F116: 0.00000 | G116: 0.00000 | H116: 1,500.00000 | I116: 0.00000 | J116: 0.00000 | K116: 0.00000 | L116: стр.5.2.
A117: 106 | B117: местный бюджет | C117: =SUM(D117:K117) -> 1,500.00000 | D117: 0.00000 | E117: 0.00000 | F117: 0.00000 | G117: 0.00000 | H117: 1,500.00000 | I117: 0.00000 | J117: =SUM(I117) -> 0.00000 | K117: =SUM(J117) -> 0.00000
A118: 107 | B118: - Изготовление и установка информационных стендов у здания Администрации Североуральского городского округа
A119: 108 | B119: Всего: | C119: =SUM(D119:K119) -> 248.00000 | D119: =SUM(D120) -> 0.00000 | E119: =SUM(E120) -> 0.00000 | F119: 0.00000 | G119: 0.00000 | H119: 248.00000 | I119: 0.00000 | J119: 0.00000 | K119: 0.00000 | L119: стр.5.3.
A120: 109 | B120: местный бюджет | C120: =SUM(D120:K120) -> 248.00000 | D120: 0.00000 | E120: 0.00000 | F120: 0.00000 | G120: 0.00000 | H120: 248.00000 | I120: 0.00000 | J120: =SUM(I120) -> 0.00000 | K120: =SUM(J120) -> 0.00000
A121: 110 | B121: - Уборка и транспортировка трупов безнадзорных животных, погибших при различных обстоятельствах, в соответствии с ветеренарно-санитарными правилами по сбору, утилизации и уничтожению биологических отходов на территории Североуральского городского округа
A122: 111 | B122: Всего: | C122: =SUM(D122:K122) -> 6.20787 | D122: =SUM(D123) -> 0.00000 | E122: =SUM(E123) -> 0.00000 | F122: 0.00000 | G122: 0.00000 | H122: 0.00000 | I122: 6.20787 | J122: 0.00000 | K122: 0.00000 | L122: стр. 17.1
A123: 112 | B123: местный бюджет | C123: =SUM(D123:K123) -> 6.20787 | D123: 0.00000 | E123: 0.00000 | F123: 0.00000 | G123: 0.00000 | H123: 0.00000 | I123: 6.20787 | J123: 0.00000 | K123: 0.00000
A124: 113 | B124: Мероприятие 7 - Регулирование численности безнадзорных животных
A125: 114 | B125: Всего, из них | C125: =SUM(D125:K125) -> 7,467.85000 | D125: =SUM(D126:D127) -> 0.00000 | E125: =SUM(E126:E127) -> 0.00000 | F125: 1771.90000 | G125: 1169.55000 | H125: 1473.90000 | I125: 1192.70000 | J125: 933.40000 | K125: 926.40000 | L125: стр.13
A126: 115 | B126: местный бюджет | C126: =SUM(D126:K126) -> 1,772.45000 | D126: 0.00000 | E126: 0.00000 | F126: 796.80000 | G126: 206.05000 | H126: 519.60000 | I126: 250.00000 | J126: 0.00000 | K126: 0.00000
A127: 116 | B127: областной бюджет | C127: =SUM(D127:K127) -> 5,695.40000 | D127: 0.00000 | E127: 0.00000 | F127: 975.10000 | G127: 963.50000 | H127: 954.30000 | I127: 942.70000 | J127: 933.40000 | K127: 926.40000
A128: 117 | B128: Подпрограмма 2: Муниципальная программа по энергосбережению и повышению энергетической эффективности объектов Североуральского городского округа
A129: 118 | B129: Всего по подпрограмме 2, в том числе | C129: =SUM(D129:K129) -> 116,242.95935 | D129: =SUM(D130:D131) -> 9,165.50000 | E129: 2,961.60000 | F129: 15,455.86781 | G129: 16,404.34197 | H129: 20,418.50000 | I129: 50,337.14957 | J129: 750.00000 | K129: 750.00000 | L129: Х
A130: 119 | B130: местный бюджет | C130: =SUM(D130:K130) -> 106,304.85935 | D130: =SUM(D134+D180) -> 2,821.10000 | E130: =SUM(E134+E180) -> 2,961.60000 | F130: =F134+F180 -> 15,455.86781 | G130: =SUM(G134+G180) -> 16,404.34197 | H130: 20,418.50000 | I130: =SUM(I134+I180) -> 46,743.44957 | J130: 750.00000 | K130: 750.00000
A131: 120 | B131: областной бюджет | C131: =SUM(D131:K131) -> 9,938.10000 | D131: =SUM(D135+D181) -> 6,344.40000 | E131: =SUM(E135+E181) -> 0.00000 | F131: =SUM(F135+F181) -> 0.00000 | G131: 0.00000 | H131: 0.00000 | I131: 3,593.70000 | J131: 0.00000 | K131: 0.00000
A132: 121 | B132: 1. Капитальные вложения
A133: 122 | B133: Всего по направлению «Капитальные вложения», всего, в том числе | C133: =SUM(D133:K133) -> 53,277.22270 | D133: =SUM(D134:D135) -> 4,173.60000 | E133: 1,420.00000 | F133: 14,122.60920 | G133: 2,804.34197 | H133: 0.00000 | I133: 30,756.67153 | J133: 0.00000 | K133: 0.00000 | L133: Х
A134: 123 | B134: местный бюджет | C134: =SUM(D134:K134) -> 46,339.12270 | D134: =SUM(D168+D138) -> 829.20000 | E134: 1,420.00000 | F134: 14,122.60920 | G134: 2,804.34197 | H134: 0.00000 | I134: =SUM(I168+I138) -> 27,162.97153 | J134: 0.00000 | K134: 0.00000
A135: 124 | B135: областной бюджет | C135: =SUM(D135:K135) -> 6,938.10000 | D135: 3,344.40000 | E135: 0.00000 | F135: 0.00000 | G135: 0.00000 | H135: 0.00000 | I135: 3,593.70000 | J135: 0.00000 | K135: 0.00000
A136: 125 | B136: 1.1. Бюджетные инвестиции в объекты капитального строительства
A137: 126 | B137: Бюджетные инвестиции в объекты капитального строительства всего, в том числе | C137: =SUM(D137:J137) -> 42,426.95117 | D137: =SUM(D138:D139) -> 0.00000 | E137: =SUM(E138:E139) -> 0.00000 | F137: 14,122.60920 | G137: 2,804.34197 | H137: 0.00000 | I137: 25,500.00000 | J137: 0.00000 | K137: 0.00000 | L137: Х
A138: 127 | B138: местный бюджет | C138: =SUM(D138:K138) -> 42,426.95117 | D138: =SUM(D142+D154+D157+D161+D164) -> 0.00000 | E138: 0.00000 | F138: 14,122.60920 | G138: 2,804.34197 | H138: 0.00000 | I138: =SUM(I142+I154+I157+I161+I164) -> 25,500.00000 | J138: 0.00000 | K138: 0.00000
A139: 128 | B139: областной бюджет | C139: =SUM(D139:J139) -> 0.00000 | D139: =SUM(D143+D158+D165) -> 0.00000 | E139: =SUM(E143+E158+E165) -> 0.00000 | F139: 0.00000 | G139: 0.00000 | H139: 0.00000 | I139: 0.00000 | J139: 0.00000 | K139: 0.00000
A140: 129 | B140: Мероприятие 3 - Закупка и установка осветительного оборудования с заменой неэффективного на энергосберегающее, в том числе замена ламп накаливания на энергосберегающие, строительство, модернизация сетей уличного освещения, проектно-сметные работы, экспертиза проектно-сметной документации
A141: 130 | B141: Всего, из них | C141: =SUM(D141:K141) -> 14,458.20066 | D141: =SUM(D142:D143) -> 0.00000 | E141: =SUM(E142:E143) -> 0.00000 | F141: 12,330.00000 | G141: 2,128.20066 | H141: 0.00000 | I141: 0.00000 | J141: 0.00000 | K141: 0.00000 | L141: стр.28
A142: 131 | B142: местный бюджет | C142: =SUM(D142:K142) -> 14,458.20066 | D142: 0.00000 | E142: 0.00000 | F142: =SUM(F150+F146) -> 12,330.00000 | G142: =SUM(G150+G146) -> 2,128.20066 | H142: 0.00000 | I142: =SUM(H142) -> 0.00000 | J142: 0.00000 | K142: 0.00000
A143: 132 | B143: областной бюджет | C143: =SUM(D143:J143) -> 0.00000 | D143: 0.00000 | E143: 0.00000 | F143: 0.00000 | G143: 0.00000 | H143: 0.00000 | I143: 0.00000 | J143: 0.00000 | K143: 0.00000
A144: 133 | B144: - Разработка ПСД на строительство сетей уличного освещения микрорайона Южный
A145: =SUM(A144+1) -> 134 | B145: Всего: | C145: =SUM(D145:K145) -> 283.20066 | D145: =SUM(D146) -> 0.00000 | E145: 0.00000 | F145: 283.20066 | G145: 0.00000 | H145: 0.00000 | I145: 0.00000 | J145: 0.00000 | K145: 0.00000 | L145: стр.28
A146: 135 | B146: местный бюджет | C146: =SUM(D146:K146) -> 283.20066 | D146: 0.00000 | E146: 0.00000 | F146: 283.20066 | G146: 0.00000 | H146: 0.00000 | I146: =SUM(H146) -> 0.00000 | J146: =SUM(I146) -> 0.00000 | K146: =SUM(J146) -> 0.00000
A147: 136 | B147: областной бюджет | C147: =SUM(D147:J147) -> 0.00000 | D147: 0.00000 | E147: 0.00000 | F147: 0.00000 | G147: 0.00000 | H147: 0.00000 | I147: 0.00000 | J147: 0.00000 | K147: 0.00000
A148: 137 | B148: - Строительство сетей уличного освещения микрорайона Южный
A149: 138 | B149: Всего: | C149: =SUM(D149:K149) -> 14,175.00000 | D149: =SUM(D150) -> 0.00000 | E149: 0.00000 | F149: 12,046.79934 | G149: 2,128.20066 | H149: 0.00000 | I149: 0.00000 | J149: 0.00000 | K149: 0.00000 | L149: стр.28
A150: 139 | B150: местный бюджет | C150: =SUM(D150:K150) -> 14,175.00000 | D150: 0.00000 | E150: 0.00000 | F150: 12,046.79934 | G150: 2,128.20066 | H150: 0.00000 | I150: =SUM(H150) -> 0.00000 | J150: =SUM(I150) -> 0.00000 | K150: =SUM(J150) -> 0.00000
A151: 140 | B151: областной бюджет | C151: =SUM(D151:J151) -> 0.00000 | D151: 0.00000 | E151: 0.00000 | F151: 0.00000 | G151: 0.00000 | H151: 0.00000 | I151: 0.00000 | J151: 0.00000 | K151: 0.00000
A152: 141 | B152: Мероприятие 5 - Разработка, экспертиза проектно-сметной документации на строительство сетей водоснабжения в Североуральском городском округе
A153: 142 | B153: Всего, из них | C153: =SUM(D153:K153) -> 20,000.00000 | D153: =SUM(D154) -> 0.00000 | E153: =SUM(E154) -> 0.00000 | F153: 0.00000 | G153: 0.00000 | H153: 0.00000 | I153: 20,000.00000 | J153: 0.00000 | K153: 0.00000 | L153: стр.31, введен с 2016 года
A154: 143 | B154: местный бюджет | C154: =SUM(D154:K154) -> 20,000.00000 | D154: 0.00000 | E154: 0.00000 | F154: 0.00000 | G154: 0.00000 | H154: =SUM(G154) -> 0.00000 | I154: 20,000.00000 | J154: 0.00000 | K154: 0.00000
A155: 144 | B155: Мероприятие 6 - Строительство сетей водоснабжения в Североуральском городском округе
A156: 145 | B156: Всего, из них | C156: =SUM(D156:K156) -> 0.00000 | D156: =SUM(D157:D158) -> 0.00000 | E156: =SUM(E157:E158) -> 0.00000 | F156: 0.00000 | G156: 0.00000 | H156: 0.00000 | I156: 0.00000 | J156: 0.00000 | K156: 0.00000 | L156: стр.32, введен с 2016 года
A157: 146 | B157: местный бюджет | C157: =SUM(D157:K157) -> 0.00000 | D157: 0.00000 | E157: 0.00000 | F157: 0.00000 | G157: 0.00000 | H157: =SUM(G157) -> 0.00000 | I157: 0.00000 | J157: 0.00000 | K157: 0.00000
A158: 147 | B158: областной бюджет | C158: =SUM(D158:J158) -> 0.00000 | D158: 0.00000 | E158: 0.00000 | F158: 0.00000 | G158: 0.00000 | H158: 0.00000 | I158: 0.00000 | J158: 0.00000 | K158: 0.00000
A159: 148 | B159: Мероприятие 7 - Разработка, экспертиза проектно-сметной документации на строительство котельных в Североуральском городском округе
A160: 149 | B160: Всего, из них | C160: =SUM(D160:K160) -> 7,968.75051 | D160: =SUM(D161) -> 0.00000 | E160: =SUM(E161) -> 0.00000 | F160: 1,792.60920 | G160: 676.14131 | H160: 0.00000 | I160: 5,500.00000 | J160: 0.00000 | K160: 0.00000 | L160: стр.33
A161: 150 | B161: местный бюджет | C161: =SUM(D161:K161) -> 7,968.75051 | D161: 0.00000 | E161: 0.00000 | F161: 1,792.60920 | G161: 676.14131 | H161: 0.00000 | I161: 5,500.00000 | J161: 0.00000 | K161: 0.00000
A162: 151 | B162: Мероприятие 8 - Строительство котельных в Североуральском городском округе
A163: 152 | B163: Всего, из них | C163: =SUM(D163:K163) -> 0.00000 | D163: =SUM(D164:D165) -> 0.00000 | E163: =SUM(E164:E165) -> 0.00000 | F163: 0.00000 | G163: 0.00000 | H163: 0.00000 | I163: 0.00000 | J163: 0.00000 | K163: 0.00000 | L163: стр.34, введен с 2016 года
A164: 153 | B164: местный бюджет | C164: =SUM(D164:K164) -> 0.00000 | D164: 0.00000 | E164: 0.00000 | F164: 0.00000 | G164: 0.00000 | H164: 0.00000 | I164: 0.00000 | J164: 0.00000 | K164: 0.00000
A165: 154 | B165: областной бюджет | C165: =SUM(D165:J165) -> 0.00000 | D165: 0.00000 | E165: 0.00000 | F165: 0.00000 | G165: 0.00000 | H165: =SUM(G165) -> 0.00000 | I165: =SUM(H165) -> 0.00000 | J165: =SUM(I165) -> 0.00000 | K165: =SUM(J165) -> 0.00000
A166: 155 | B166: 1.2. Иные капитальные вложения
A167: 156 | B167: Всего, в том числе | C167: =SUM(D167:K167) -> 10,850.27153 | D167: =SUM(D168:D169) -> 4,173.60000 | E167: 1,420.00000 | F167: 0.00000 | G167: 0.00000 | H167: 0.00000 | I167: 5,256.67153 | J167: 0.00000 | K167: 0.00000 | L167: Х
A168: 157 | B168: местный бюджет | C168: =SUM(D168:K168) -> 3,912.17153 | D168: =SUM(D176+D172) -> 829.20000 | E168: =SUM(E176) -> 1,420.00000 | F168: 0.00000 | G168: 0.00000 | H168: 0.00000 | I168: 1,662.97153 | J168: 0.00000 | K168: 0.00000
A169: 158 | B169: областной бюджет | C169: =SUM(D169:K169) -> 6,938.10000 | D169: =SUM(D177+D173) -> 3,344.40000 | E169: =SUM(E177) -> 0.00000 | F169: 0.00000 | G169: 0.00000 | H169: 0.00000 | I169: 3,593.70000 | J169: 0.00000 | K169: 0.00000
A170: 159 | B170: Мероприятие 1- Реконструкция, модернизация водопроводных сетей, сетей системы водоотведения с заменой (без замены) оборудования с более высоким КПД, установка регулируемого привода, реконструкция тепловых сетей, в том числе тепловых пунктов, котельных, капитальный ремонт систем коммунального хозяйства
A171: 160 | B171: Всего, в том числе: | C171: =SUM(D171:K171) -> 3,037.40000 | D171: =SUM(D172:D173) -> 3,037.40000 | E171: 0.00000 | F171: 0.00000 | G171: 0.00000 | H171: 0.00000 | I171: 0.00000 | J171: 0.00000 | K171: =SUM(K172:K173) -> 0.00000 | L171: стр.29
A172: 161 | B172: местный бюджет | C172: =SUM(D172:K172) -> 281.00000 | D172: 281.00000 | E172: 0.00000 | F172: 0.00000 | G172: 0.00000 | H172: 0.00000 | I172: 0.00000 | J172: 0.00000 | K172: 0.00000
A173: 162 | B173: областной бюджет | C173: =SUM(D173:K173) -> 2,756.40000 | D173: 2,756.40000 | E173: 0.00000 | F173: 0.00000 | G173: 0.00000 | H173: =SUM(G173) -> 0.00000 | I173: =SUM(H173) -> 0.00000 | J173: =SUM(I173) -> 0.00000 | K173: =SUM(J173) -> 0.00000
A174: 163 | B174: Мероприятие 3 - Закупка и установка осветительного оборудования с заменой неэффективного на энергосберегающее, в том числе замена ламп накаливания на энергосберегающие, строительство, модернизация сетей уличного освещения, проектно-сметные работы, экспертиза проектно-сметной документации
A175: 164 | B175: Всего, из них | C175: =SUM(C176:C177) -> 7,812.87153 | D175: =SUM(D176:D177) -> 1,136.20000 | E175: =SUM(E176:E177) -> 1,420.00000 | F175: 0.00000 | G175: 0.00000 | H175: 0.00000 | I175: 5,256.67153 | J175: 0.00000 | K175: =SUM(K176:K177) -> 0.00000 | L175: стр.28
A176: 165 | B176: местный бюджет | C176: =SUM(D176:K176) -> 3,631.17153 | D176: 548.20000 | E176: 1,420.00000 | F176: 0.00000 | G176: 0.00000 | H176: 0.00000 | I176: 1,662.97153 | J176: 0.00000 | K176: =SUM(J176) -> 0.00000
A177: 166 | B177: областной бюджет | C177: =SUM(D177:K177) -> 4,181.70000 | D177: 588.00000 | E177: 0.00000 | F177: 0.00000 | G177: 0.00000 | H177: =SUM(G177) -> 0.00000 | I177: 3,593.70000 | J177: 0.00000 | K177: 0.00000
A178: 167 | B178: 3. Прочие нужды
A179: 168 | B179: Всего по направлению «Прочие нужды», всего, в том числе: | C179: =SUM(C180:C181) -> 62,965.73665 | D179: =SUM(D180:D181) -> 4,991.90000 | E179: =SUM(E180:E181) -> 1,541.60000 | F179: 1,333.25861 | G179: 13,600.00000 | H179: 20,418.50000 | I179: 19,580.47804 | J179: 750.00000 | K179: 750.00000 | L179: Х
A180: 169 | B180: местный бюджет | C180: =SUM(D180:K180) -> 59,965.73665 | D180: =SUM(D188+D193+D197+D200+D184) -> 1,991.90000 | E180: 1,541.60000 | F180: 1,333.25861 | G180: 13,600.00000 | H180: 20,418.50000 | I180: 19,580.47804 | J180: 750.00000 | K180: 750.00000
A181: 170 | B181: областной бюджет | C181: =SUM(D181:K181) -> 3,000.00000 | D181: =SUM(D189+D194+D185) -> 3,000.00000 | E181: 0.00000 | F181: 0.00000 | G181: 0.00000 | H181: 0.00000 | I181: 0.00000 | J181: 0.00000 | K181: 0.00000
A182: 171 | B182: Мероприятие 1- Реконструкция, модернизация водопроводных сетей, сетей системы водоотведения с заменой (без замены) оборудования с более высоким КПД, установка регулируемого привода, реконструкция тепловых сетей, в том числе тепловых пунктов, котельных, капитальный ремонт систем коммунального хозяйства
A183: 172 | B183: Всего, в том числе: | C183: =SUM(D183:K183) -> 51,705.97804 | D183: =SUM(D184:D185) -> 0.00000 | E183: 0.00000 | F183: 0.00000 | G183: 13,000.00000 | H183: 19,775.50000 | I183: 18,930.47804 | J183: 0.00000 | K183: =SUM(K184:K185) -> 0.00000 | L183: стр.29
A184: 173 | B184: местный бюджет | C184: =SUM(D184:K184) -> 51,705.97804 | D184: 0.00000 | E184: 0.00000 | F184: 0.00000 | G184: 13,000.00000 | H184: 19,775.50000 | I184: 18,930.47804 | J184: 0.00000 | K184: 0.00000
A185: 174 | B185: областной бюджет | C185: =SUM(D185:J185) -> 0.00000 | D185: 0.00000 | E185: 0.00000 | F185: 0.00000 | G185: 0.00000 | H185: =SUM(G185) -> 0.00000 | I185: =SUM(H185) -> 0.00000 | J185: =SUM(I185) -> 0.00000 | K185: =SUM(J185) -> 0.00000
A186: 175 | B186: Мероприятие 2 - Оснащение зданий (строений, сооружений), находящихся в муниципальной собственности, многоквартирных жилых домов, жилых помещений, квартир приборами учета используемых энергетических ресурсов, в том числе разработка проектно-сметной документации
A187: 176 | B187: Всего, из них | C187: =SUM(C188:C190) -> 8,777.55861 | D187: =SUM(D188:D189) -> 4,200.00000 | E187: 1,100.00000 | F187: 1,250.40861 | G187: 427.15000 | H187: 400.00000 | I187: 400.00000 | J187: 500.00000 | K187: 500.00000 | L187: стр.22,23,24,25,26
A188: 177 | B188: местный бюджет | C188: =SUM(D188:K188) -> 5,777.55861 | D188: 1,200.00000 | E188: 1,100.00000 | F188: 1,250.40861 | G188: 427.15000 | H188: 400.00000 | I188: 400.00000 | J188: 500.00000 | K188: 500.00000
A189: 178 | B189: областной бюджет | C189: =SUM(D189:K189) -> 3,000.00000 | D189: 3,000.00000 | E189: =SUM(E190) -> 0.00000 | F189: 0.00000 | G189: 0.00000 | H189: 0.00000 | I189: 0.00000 | J189: 0.00000 | K189: 0.00000
A190: 179 | B190: федеральный бюджет | C190: =SUM(D190:J190) -> 0.00000 | D190: 0.00000 | E190: 0.00000 | F190: 0.00000 | G190: =SUM(F190) -> 0.00000 | H190: =SUM(G190) -> 0.00000 | I190: =SUM(H190) -> 0.00000 | J190: =SUM(I190) -> 0.00000 | K190: =SUM(J190) -> 0.00000
A191: 180 | B191: Мероприятие 3 - Закупка и установка осветительного оборудования с заменой неэффективного на энергосберегающее, в том числе замена ламп накаливания на энергосберегающие, строительство, модернизация сетей уличного освещения, проектно-сметные работы, экспертиза проектно-сметной документации
A192: 181 | B192: Всего, из них | C192: =SUM(D192:K192) -> 591.90000 | D192: =SUM(D193:D194) -> 411.90000 | E192: =SUM(E193:E194) -> 180.00000 | F192: 0.00000 | G192: 0.00000 | H192: 0.00000 | I192: 0.00000 | J192: 0.00000 | K192: =SUM(K193:K194) -> 0.00000 | L192: стр.28
A193: 182 | B193: местный бюджет | C193: =SUM(D193:K193) -> 591.90000 | D193: 411.90000 | E193: 180.00000 | F193: 0.00000 | G193: 0.00000 | H193: 0.00000 | I193: 0.00000 | J193: 0.00000 | K193: 0.00000
A194: 183 | B194: областной бюджет | C194: =SUM(D194:J194) -> 0.00000 | D194: 0.00000 | E194: 0.00000 | F194: 0.00000 | G194: 0.00000 | H194: =SUM(G194) -> 0.00000 | I194: =SUM(H194) -> 0.00000 | J194: =SUM(I194) -> 0.00000 | K194: =SUM(J194) -> 0.00000
A195: 184 | B195: Мероприятие 4- Разработка схемы водоснабжения Североуральского городского округа
A196: 185 | B196: Всего, из них | C196: =SUM(D196:K196) -> 380.00000 | D196: =SUM(D197) -> 380.00000 | E196: =SUM(E197) -> 0.00000 | F196: 0.00000 | G196: 0.00000 | H196: 0.00000 | I196: 0.00000 | J196: 0.00000 | K196: 0.00000 | L196: стр.30
A197: 186 | B197: местный бюджет | C197: =SUM(D197:K197) -> 380.00000 | D197: 380.00000 | E197: 0.00000 | F197: 0.00000 | G197: =SUM(F197) -> 0.00000 | H197: =SUM(G197) -> 0.00000 | I197: =SUM(H197) -> 0.00000 | J197: =SUM(I197) -> 0.00000 | K197: =SUM(J197) -> 0.00000
A198: 187 | B198: Мероприятие 9- Прочие мероприятия в области энергосбережения (разработка технических заданий, топливно-энерготехнического баланса и т.п.)
A199: 188 | B199: Всего, из них | C199: =SUM(D199:K199) -> 1,510.30000 | D199: =SUM(D200) -> 0.00000 | E199: =SUM(E200) -> 261.60000 | F199: 82.85000 | G199: 172.85000 | H199: 243.00000 | I199: 250.00000 | J199: 250.00000 | K199: 250.00000 | L199: стр.35, с 2016 года стр. 36
A200: 189 | B200: местный бюджет | C200: =SUM(D200:K200) -> 1,510.30000 | D200: 0.00000 | E200: 261.60000 | F200: 82.85000 | G200: 172.85000 | H200: 243.00000 | I200: 250.00000 | J200: =SUM(I200) -> 250.00000 | K200: =SUM(J200) -> 250.00000
A201: 190 | B201: Подпрограмма 3: Развитие лесного хозяйства на территории Североуральского городского округа
A202: 191 | B202: Всего по подпрограмме 1, всего, в том числе | C202: =SUM(C203:C203) -> 3,040.19000 | D202: =SUM(D203) -> 774.10000 | E202: =SUM(E203) -> 881.10000 | F202: 0.00000 | G202: 0.00000 | H202: 184.99000 | I202: 200.00000 | J202: 500.00000 | K202: 500.00000 | L202: Х
... 271 more rows

Sheet Лист2

Sheet Лист3
